[Event "Czech Championship Women 2022"]
[Site "Jaromerice nad Rokytnou"]
[Date "2022.05.29"]
[Round "9.4"]
[White "Petrova, Kristyna"]
[Black "Novosadova, Kristyna"]
[Result "0-1"]
[ECO "D02"]
[WhiteElo "2264"]
[BlackElo "2147"]
[Annotator "TA"]
[PlyCount "285"]
[EventDate "2022.05.24"]
[EventType "tourn"]
[EventCountry "CZE"]
[SourceTitle "playchess.com"]
[Source "ChessBase"]
[SourceQuality "1"]
[TimeControl "40/5400+30:1800+30"]

{[%evp 45,285,-3,0,0,0,0,0,0,8,2,6,4,32,13,27,27,29,29,75,29,122,115,143,142,167,170,158,140,184,170,230,237,210,183,239,232,233,181,190,218,206,180,177,177,269,100,101,101,106,99,108,104,108,94,129,129,129,129,129,121,122,122,192,122,122,122,122,121,121,122,122,122,122,122,122,122,122,122,131,108,123,109,106,80,223,80,80,80,252,223,216,216,216,83,216,70,216,208,201,175,310,295,281,267,266,258,248,186,186,186,186,186,186,186,186,186,186,186,186,186,186,186,186,186,186,186,186,186,186,0,207,186,186,0,187,174,186,186,186,186,186,186,186,186,186,186,186,186,186,186,186,186,186,186,186,186,186,186,186,186,186,186,186,186,186,186,186,186,187,178,178,178,178,178,178,178,178,178,178,178,178,178,178,178,178,178,178,178,178,178,178,178,178,178,178,178,178,178,178,178,355,56,56,56,56,56,56,0,0,0,0,0,0,0,0,0,0,0,0,0,0,0,0,0,0,0,0,0,56,0,56,56,56,56,355,355,355,355,355,355,29998,29999]} 1. d4 {[%emt 0:00:03]} d5 {[%emt 0:00:20]} 2. Bf4 {[%emt 0:00:11]} Nf6 {[%emt 0:00:21]} 3. e3 {[%emt 0:00:54]} c5 {[%emt 0:03:11]} 4. c3 {[%emt 0:01:54]} Nc6 {[%emt 0:00:34]} 5. Nf3 {[%emt 0:07:06]} Qb6 6. Qb3 {[%emt 0:24:39]} c4 7. Qc2 {[%emt 0:28:42]} g6 {[%emt 0:06:30]} 8. h3 {[%emt 0:00:00]} Bf5 {[%emt 0:05:01]} 9. Qc1 {[%emt 0:00:00]} h5 {[%emt 0:04:06]} 10. Be2 {[%emt 0:00:00]} Bg7 {[%emt 0:00:47]} 11. Nbd2 {[%emt 0:00:00]} Rc8 {[%emt 0:00:41]} 12. Ne5 {[%emt 0:00:00]} Ne4 {[%emt 0:03:54]} 13. Nxc6 {[%emt 0:00:00]} Rxc6 {[%emt 0:02:32]} 14. Nxe4 {[%emt 0:00:00]} Bxe4 {[%emt 0:02:46]} 15. f3 {[%emt 0:01:02]} Bf5 {[%emt 0:00:54]} 16. Bd1 {[%emt 0:02:58]} Qa5 {[%emt 0:08:29]} 17. Bc2 {[%emt 0:01:44]} Bxc2 {[%emt 0:03:15]} 18. Qxc2 {[%emt 0:00:03]} b5 {[%emt 0:00:35]} 19. O-O {[%emt 0:02:55]} O-O {[%emt 0:01:13]} 20. e4 {[%emt 0:01:09]} b4 {[%emt 0:01:37]} 21. exd5 {[%emt 0:02:53]} Qxd5 {[%emt 0:00:13]} 22. Qe4 {[%emt 0:00:21]} Qxe4 {[%emt 0:03:45]} 23. fxe4 {[%emt 0:00:02]} Rb6 {[%emt 0:03:08]} 24. Rf2 {[%emt 0:02:28]} e5 {[%emt 0:03:19]} 25. Bxe5 {[%emt 0:00:35]} Bxe5 {[%emt 0:00:06]} 26. dxe5 {[%emt 0:00:02]} bxc3 {[%emt 0:04:20]} 27. bxc3 {[%emt 0:00:01]} Re8 {[%emt 0:01:45]} 28. Rd1 {[%emt 0:01:05]} Rb7 {[%emt 0:06:07]} 29. Rd4 {[%emt 0:05:24]} Rc7 {[%emt 0:00:09]} 30. Rd5 {[%emt 0:05:45]} Kg7 {[%emt 0:01:03]} 31. Rb2 {[%emt 0:01:57]} Re6 {[%emt 0:03:56]} (31... Rce7 $11) 32. Rb4 {[%emt 0:03:05]} (32. a4 $16) 32... f6 {[%emt 0:02:07]} (32... Rce7 $11 {remains equal.}) 33. exf6+ $16 {[%emt 0:01:04]} Kxf6 {[%emt 0:00:15]} 34. Rd4 {[%emt 0:00:22]} Rec6 {[%emt 0:00:26]} 35. Kf2 {[%emt 0:00:22]} Rc5 {[%emt 0:01:48]} 36. Kf3 {[%emt 0:01:54]} h4 {[%emt 0:01:38]} 37. Rd6+ {[%emt 0:01:31]} Kg5 {[%emt 0:04:03]} (37... Kg7 {might work better.} 38. Kg4 Re5) 38. Ke3 $18 {[%emt 0:00:53]} Re7 {[%emt 0:00:48]} 39. Rd4 {[%emt 0:01:41]} Kh5 {[%emt 0:04:28]} (39... Kf6 $142 40. Rdxc4 (40. Rbxc4 Rg5 $16) 40... Rg5) 40. Rbxc4 $18 {[%emt 0:00:35]} Rg5 {[%emt 0:00:16]} 41. Kf2 {[%emt 0:07:57]} Rf7+ {[%emt 0:00:23]} 42. Kg1 {[%emt 0:00:26]} Rg3 {[%emt 0:01:46]} 43. e5 {[%emt 0:04:30]} g5 {[%emt 0:00:37]} 44. e6 {[%emt 0:00:29]} Rb7 {[%emt 0:00:28]} (44... Re7 {was necessary.} 45. Re4 Kg6) 45. Rb4 $2 {[%emt 0:03:53]} (45. Rg4 $1 $18) 45... Re7 $16 {[%emt 0:00:30]} 46. Re4 {[%emt 0:01:05]} Rxc3 {[%emt 0:04:06]} 47. Rb5 {[%emt 0:01:05]} Rg3 {[%emt 0:04:14]} 48. Rf5 {[%emt 0:08:29]} Kg6 {[%emt 0:03:48]} 49. Ree5 {[%emt 0:07:29]} Rxe6 {[%emt 0:01:02]} 50. Rxg5+ $1 {[%emt 0:00:30]} Rxg5 {[%emt 0:00:25]} 51. Rxe6+ {[%emt 0:00:01]} Kh5 {[%emt 0:02:04]} 52. Ra6 {[%emt 0:00:09]} Rg7 {[%emt 0:00:07]} 53. Ra5+ {[%emt 0:01:18]} Kh6 {[%emt 0:01:31]} (53... Kg6 $16 {was worth a try.} 54. Ra4 Kh5 55. Ra5+ Kh6) 54. Ra4 {[%emt 0:00:39]} (54. g4 $1 $18) 54... Kh5 $16 {[%emt 0:00:15]} 55. Kf2 {[%emt 0:00:52]} Rf7+ {[%emt 0:01:12]} 56. Ke3 {[%emt 0:00:10]} Re7+ {[%emt 0:03:32]} 57. Kf3 {[%emt 0:01:20]} Rf7+ {[%emt 0:00:39]} 58. Rf4 $1 {[%emt 0:00:16]} Rg7 {[%emt 0:00:36]} 59. Rf5+ {[%emt 0:01:19]} Kh6 {[%emt 0:00:28]} 60. a4 {[%emt 0:00:55]} Rg3+ {[%emt 0:03:22]} 61. Kf2 {[%emt 0:00:34]} Rg7 {[%emt 0:02:00]} 62. Rf8 {[%emt 0:00:27]} Rg6 {[%emt 0:04:35]} 63. Rh8+ {[%emt 0:01:42]} Kg5 {[%emt 0:00:09]} 64. Rh7 {[%emt 0:00:37]} a6 {[%emt 0:02:01]} (64... Ra6 $16) 65. Kf3 {[%emt 0:00:21]} (65. Rd7 $18 {and White stays clearly on top.}) 65... Rf6+ $16 {[%emt 0:00:10]} 66. Ke3 {[%emt 0:00:14]} Rg6 $2 {[%emt 0:02:12]} (66... Rf5 $16) 67. Rh8 {[%emt 0:00:30]} Rb6 {[%emt 0:01:51]} 68. Rg8+ {[%emt 0:00:20]} Kh5 {[%emt 0:00:11]} 69. Rg4 {[%emt 0:00:57]} (69. Rd8 $18 {is more deadly.}) 69... Rd6 {[%emt 0:01:43]} (69... Rb3+ $16 {is a better defense.} 70. Ke2 Rc3) 70. Rc4 {[%emt 0:00:51]} ({White should try} 70. Re4 $18) 70... Rg6 {[%emt 0:00:27]} (70... Rd5 $1 $14) 71. Rc5+ {[%emt 0:00:19]} Kh6 {[%emt 0:00:23]} 72. Rc2 {[%emt 0:00:14]} a5 {[%emt 0:06:41]} (72... Rg3+ $142 73. Kf4 Kg6) 73. Kf3 $18 {[%emt 0:00:44]} Rg3+ {[%emt 0:01:01]} 74. Kf2 {[%emt 0:00:23]} Rg5 {[%emt 0:00:30]} 75. Rc6+ {[%emt 0:00:30]} Kh5 {[%emt 0:03:42]} 76. Rb6 {[%emt 0:00:05]} Re5 {[%emt 0:00:15]} 77. Kf3 {[%emt 0:00:25]} (77. Rb5 Rxb5 78. axb5 a4 $18) 77... Kg5 {[%emt 0:00:15]} 78. Rb5 {[%emt 0:01:32]} Rxb5 {[%emt 0:00:40]} 79. axb5 {[%emt 0:00:01]} a4 {[%emt 0:00:06]} 80. b6 {[%emt 0:00:04]} a3 {[%emt 0:00:03]} 81. b7 {[%emt 0:00:02]} a2 {[%emt 0:00:04]} 82. b8=Q {[%emt 0:00:04]} a1=Q {[%emt 0:00:03]} 83. Qf4+ {[%emt 0:00:38]} Kg6 {[%emt 0:00:18]} 84. Qg4+ {[%emt 0:00:31]} Kf7 {[%emt 0:00:23]} 85. Qh5+ {[%emt 0:00:39]} Kg7 {[%emt 0:00:53]} 86. Qg5+ {[%emt 0:00:09]} (86. Qxh4 Qf1+ 87. Qf2 Qd3+ 88. Qe3 Qf5+ 89. Qf4 Qd5+ 90. Kg3 Kh8 $18) 86... Kf7 {[%emt 0:00:29]} 87. Kg4 $2 {[%emt 0:01:34]} (87. Qxh4 Qd1+ 88. Kf2 Qd2+ 89. Kg1 Kg7 90. Qg3+ Kh7 $18) (87. Qf5+ $18 Ke7 88. Qh7+ Kf8 89. Qxh4) 87... Qe1 $2 {[%emt 0:00:42]} (87... Qd4+ $1 $11 88. Qf4+ Qxf4+ 89. Kxf4 Kg6 90. Kg4 Kh6 91. Kxh4 Kg7 92. Kg5 Kg8) 88. Qh5+ {[%emt 0:00:59]} (88. Qxh4 Qe4+ 89. Kg3 Qe1+ 90. Kg4 Qe4+ 91. Kg5 (91. Kg3 Qe1+ 92. Kg4 $11) 91... Qe5+ 92. Kg4 Qe4+ $11) 88... Kg7 {[%emt 0:00:14]} 89. Qg5+ {[%emt 0:00:02]} (89. Qxh4 Qe4+ 90. Kg5 (90. Kg3 Qe1+ 91. Kg4 Qe4+ 92. Kg5 Qe5+ 93. Kg4 Qe4+ $11) 90... Qe5+ 91. Kg4 Qe4+ 92. Kg5 (92. Kg3 Qe1+ 93. Kg4 Qe4+ $11) 92... Qe5+ 93. Kg4 Qe4+ $11) 89... Kf7 {[%emt 0:00:07]} 90. Qf4+ {[%emt 0:00:21]} ({Weaker is} 90. Qxh4 Qe4+ 91. Kg3 Qe1+ 92. Kg4 Qe4+ 93. Kg5 (93. Kg3 Qe1+ 94. Kg4 $11) 93... Qe5+ 94. Kg4 Qe4+ $11) 90... Kg6 {[%emt 0:00:33]} 91. Qf5+ {[%emt 0:00:17]} Kg7 {[%emt 0:00:35]} 92. Kh5 {[%emt 0:00:24]} Kh8 {[%emt 0:01:34]} 93. Qf6+ {[%emt 0:00:23]} Kh7 {[%emt 0:00:15]} 94. Qxh4 {[%emt 0:00:36]} Qe6 {[%emt 0:00:51]} 95. Kg5+ {[%emt 0:00:21]} Kg7 {[%emt 0:00:09]} 96. Qd4+ {[%emt 0:00:07]} Kh7 {[%emt 0:00:08]} 97. Kf4 {[%emt 0:01:52]} Qh6+ {[%emt 0:00:50]} 98. Kf3 {[%emt 0:00:14]} Qh5+ {[%emt 0:00:17]} 99. Qg4 {[%emt 0:00:26]} Qf7+ {[%emt 0:00:08]} 100. Qf4 {[%emt 0:00:09]} Qb3+ {[%emt 0:00:31]} 101. Kg4 {[%emt 0:00:34]} Qg8+ {[%emt 0:00:32]} 102. Qg5 $1 {[%emt 0:00:23]} Qb3 {[%emt 0:01:14]} 103. h4 {[%emt 0:00:36]} Qd1+ {[%emt 0:00:43]} 104. Kh3 $1 {[%emt 0:00:22]} Qh1+ {[%emt 0:00:27]} 105. Kg3 {[%emt 0:00:04]} Qe1+ {[%emt 0:00:07]} 106. Kh2 $1 {[%emt 0:00:07]} Qb4 {[%emt 0:01:14]} 107. h5 {[%emt 0:00:41]} Qb8+ {[%emt 0:01:08]} 108. Kh3 {[%emt 0:00:28]} Qc8+ {[%emt 0:00:11]} 109. Qg4 {[%emt 0:00:08]} Qc3+ {[%emt 0:00:11]} 110. g3 {[%emt 0:00:12]} Qe1 {[%emt 0:00:25]} 111. Qf5+ {[%emt 0:00:24]} Kh8 {[%emt 0:00:09]} 112. Qf3 {[%emt 0:01:28]} Qe6+ {[%emt 0:00:59]} 113. Qg4 {[%emt 0:01:31]} Qf6 {[%emt 0:00:38]} 114. Qf4 {[%emt 0:00:40]} Qe6+ {[%emt 0:00:12]} 115. g4 {[%emt 0:00:25]} Qe1 {[%emt 0:00:31]} 116. Qd4+ {[%emt 0:00:39]} Kh7 {[%emt 0:00:09] [#]} 117. Qd3+ $1 {[%emt 0:00:10]} Kh8 {[%emt 0:00:16]} 118. Qf3 {[%emt 0:00:20]} Qd2 {[%emt 0:01:26]} 119. Qg3 {[%emt 0:00:42]} Qd1 {[%emt 0:01:02]} 120. Qe5+ {[%emt 0:00:25]} Kh7 {[%emt 0:00:12]} 121. Qe4+ {[%emt 0:00:20]} Kh8 {[%emt 0:00:10]} 122. Kh4 {[%emt 0:01:01]} Qd2 $2 {[%emt 0:00:39]} (122... Qd6 123. g5 Qh2+ 124. Kg4 Qg1+ 125. Kh4 Qh2+ 126. Kg4 Qg1+ 127. Kh4 Qf2+ 128. Kh3 Qf1+ 129. Kh4 Qf2+ 130. Kh3 Qf1+ 131. Kg4 Qg1+) 123. g5 $2 {[%emt 0:00:49]} ({Only move:} 123. Qe5+ $18 Kh7 124. Qf5+ Kh8 125. Qf6+ Kh7 126. Qe5) 123... Qh2+ {[%emt 0:00:16]} 124. Kg4 {[%emt 0:00:05]} Qg1+ $1 {[%emt 0:00:16]} 125. Kf5 {[%emt 0:00:31]} Qf2+ {[%emt 0:00:50]} 126. Qf4 {[%emt 0:00:38]} (126. Ke5 $1 $14 Qc5+ 127. Qd5 Qe7+ 128. Kd4) 126... Qc2+ $11 {[%emt 0:00:27]} 127. Kg4 {[%emt 0:00:34]} Qg2+ {[%emt 0:00:20]} 128. Kf5 {[%emt 0:00:32]} Qc2+ $1 {[%emt 0:00:08]} 129. Ke6 {[%emt 0:00:35]} Qc8+ {[%emt 0:00:35]} 130. Ke7 {[%emt 0:00:33]} Qc5+ {[%emt 0:00:30]} 131. Kd7 {[%emt 0:00:21]} Qd5+ {[%emt 0:00:44]} 132. Ke7 {[%emt 0:00:26]} Qc5+ {[%emt 0:00:05]} 133. Ke6 {[%emt 0:00:26]} Qc8+ $1 {[%emt 0:00:09]} 134. Kd5 {[%emt 0:00:18]} Qb7+ {[%emt 0:00:38]} 135. Kd4 {[%emt 0:00:50]} Qb2+ {[%emt 0:00:35]} 136. Kd3 {[%emt 0:00:13]} Qb1+ {[%emt 0:00:34]} ({Black should play} 136... Qb3+ $11 137. Kd2 Qd5+ 138. Ke3 Qb3+ 139. Ke2 Qe6+ 140. Kf2 Kg8 141. Qb8+ Kg7 142. Qa7+ Kg8 143. Qb8+ Kh7 144. Qb7+ Kg8 145. Qb8+) 137. Ke2 $1 $14 {[%emt 0:00:26]} Qc2+ {[%emt 0:00:48]} (137... Qb5+ $1 $11 138. Kf2 Qc5+ 139. Qe3 Qc4) 138. Ke1 $1 $14 {[%emt 0:00:53]} Qc3+ {[%emt 0:01:04]} 139. Kf2 {[%emt 0:00:16]} Qc2+ $2 {[%emt 0:00:40][%mdl 8192]} (139... Kg7 $14 140. Qe3 Qc4) 140. Kg3 $18 {[%emt 0:00:32]} Qc3+ {[%emt 0:00:06] [#]} 141. Kg4 $1 {[%emt 0:00:24]} ({But not} 141. Qf3 Qe5+ 142. Kh4 Qe1+ 143. Kh3 Qe6+ 144. Kh4 Qe1+ 145. Kh3 Qe6+ 146. Kg3 Qe5+ 147. Kg4 Qe6+ 148. Kh4 Qe1+ $18) 141... Qc8+ {[%emt 0:00:20]} 142. Kh4 {[%emt 0:00:05]} Qb7 $2 {[%emt 0:01:23]} (142... Qe8 $18 143. Qd4+ Kh7) 143. Qf8+ {[%emt 0:00:09]} 0-1

[Event "Czech Championship Women 2022"]
[Site "Jaromerice nad Rokytnou"]
[Date "2022.05.29"]
[Round "9.5"]
[White "Lhotska, Anna"]
[Black "Sikorova, Olga"]
[Result "0-1"]
[ECO "B41"]
[WhiteElo "2029"]
[BlackElo "2173"]
[Annotator "TA"]
[PlyCount "128"]
[EventDate "2022.05.24"]
[EventType "tourn"]
[EventCountry "CZE"]
[SourceTitle "playchess.com"]
[Source "ChessBase"]
[SourceQuality "1"]
[TimeControl "40/5400+30:1800+30"]

{[%evp 11,128,1,16,-4,0,-31,-6,-37,-37,-31,-4,-4,0,0,0,0,6,-16,24,27,19,17,71,32,93,51,44,12,55,23,42,45,53,-27,-23,-14,-25,-90,-60,-58,-59,-382,-84,-304,-49,-49,-38,-54,-16,-39,0,-16,-20,-21,-24,-29,-63,-93,-21,-28,-26,-124,-127,-132,-14,-513,-494,-602,-576,-590,-581,-614,-608,-650,-655,-604,-634,-609,-634,-531,-400,-779,-711,-728,-428,-1275,-707,-697,-659,-663,-633,-638,-611,-630,-629,-611,-561,-533,-510,-488,-402,-602,-554,-430,-395,-29965,-29966,-29961,-29966,-29965,-29966,-29959,-29966,-29967,-29965,-29948,-11365,-29986,-29987]} 1. e4 {[%emt 0:00:03]} c5 {[%emt 0:00:01]} 2. Nf3 {[%emt 0:00:06]} a6 {[%emt 0:00:16]} 3. c4 {[%emt 0:00:54]} e6 {[%emt 0:00:28]} 4. d4 {[%emt 0:00:21]} cxd4 {[%emt 0:00:02]} 5. Nxd4 {[%emt 0:00:08]} Nf6 {[%emt 0:00:14]} 6. Bd3 {[%emt 0:03:25]} Nc6 {[%emt 0:02:52]} 7. Nxc6 {[%emt 0:18:22] B41: Sicilian: Kan Variation: 5 c4.} dxc6 {[%emt 0:00:09]} 8. Bf4 {[%emt 0:03:24]} Qa5+ {[%emt 0:11:17] [#]} 9. Nd2 $146 {[%emt 0:09:54] The position is equal.} ({Predecessor:} 9. Bd2 Qc7 10. Bc3 e5 11. Nd2 Bg4 12. Be2 Be6 13. Qc2 Nd7 14. O-O a5 15. Nf3 {½-½ (31) Feoktistov,A (2435)-Iljushin,A (2553) St Petersburg 2003}) 9... e5 {[%emt 0:05:09]} 10. Bg5 {[%emt 0:01:13]} Be6 {[%emt 0:09:10]} 11. O-O {[%emt 0:08:16]} h6 {[%emt 0:06:51]} 12. Bxf6 {[%emt 0:13:10]} gxf6 {[%emt 0:00:01]} 13. a3 {[%emt 0:00:44]} Qd8 {[%emt 0:05:29]} 14. Qe2 {[%emt 0:02:48]} Bc5 {[%emt 0:02:00]} 15. b4 {[%emt 0:05:21]} Bd4 {[%emt 0:00:42]} 16. Rab1 {[%emt 0:00:50]} b6 {[%emt 0:11:05]} (16... a5 $11) 17. c5 {[%emt 0:05:50]} (17. Nb3 $5 {[%cal Rb3d4]}) 17... bxc5 {[%emt 0:02:09]} (17... b5 $14) 18. Bxa6 {[%emt 0:00:41]} O-O {[%emt 0:05:28]} 19. Bc4 {[%emt 0:04:15]} Qd7 {[%emt 0:06:44]} 20. Rb3 {[%emt 0:01:32]} Kh7 {[%emt 0:01:47]} 21. Bxe6 {[%emt 0:03:03]} Qxe6 {[%emt 0:02:30]} 22. Rfb1 {[%emt 0:09:35]} (22. Qh5 $14 Rg8 23. bxc5 (23. Rh3 Rg6 $15)) 22... cxb4 $11 {[%emt 0:01:38]} 23. axb4 {[%emt 0:00:15]} Ra2 {[%emt 0:01:13]} 24. Rf3 {[%emt 0:03:48]} (24. Rd3 $11) 24... Rd8 {[%emt 0:02:08]} 25. Rd3 {[%emt 0:02:49]} f5 {[%emt 0:11:34]} 26. Rf1 $2 {[%emt 0:01:38][%mdl 8192] [#]} ({Better is} 26. Kh1 $1 $15) 26... f4 $2 {[%emt 0:00:33]} (26... fxe4 $1 $19 27. Qxe4+ f5) 27. Qf3 {[%emt 0:00:18] [#]} (27. Kh1 $17) 27... Qd6 $2 {[%emt 0:05:36]} ({Black should try} 27... c5 $1 $19 {[%cal Rc5c4] aiming for ...c4.} 28. bxc5 Qa6) 28. Kh1 $15 {[%emt 0:00:11]} Qxb4 {[%emt 0:00:32]} 29. Qh5 $1 {[%emt 0:00:30]} Qe7 {[%emt 0:01:07] Active counter play!} (29... Rxd2 $2 30. Qxf7+ Kh8 31. Rxd2 $18) (29... Kg7 $5 {[%cal Ra2d2]} 30. Nf3 Rxf2 $15) 30. Nf3 {[%emt 0:00:49][%cal Of3e5,Bd2f3,Bf3h4,Bh4f5][%mdl 32] Strongly threatening Nxe5!} Raa8 {[%emt 0:05:57]} 31. Nh4 {[%emt 0:00:36]} (31. g3 $5 {[%cal Rg3f4]} Qf6 32. Rfd1 $11) 31... Qf6 $36 {[%emt 0:00:32][%mdl 2048] Black is pushing.} 32. Rh3 {[%emt 0:00:21]} Rg8 {[%emt 0:00:24]} 33. Nf5 {[%emt 0:00:53][%cal Rh5h6]} Rg6 {[%emt 0:00:11]} 34. Qf3 {[%emt 0:00:42]} Bc5 {[%emt 0:01:07]} (34... c5 $17 {Threatens to win with ...Ra2.} 35. Nh4 Qa6) 35. Qc3 $11 {[%emt 0:00:35]} Bf8 {[%emt 0:00:10] ...Ra3 is the strong threat.} 36. g3 {[%emt 0:00:34]} (36. Qc2 $11) 36... Ra3 $17 {[%emt 0:00:17]} 37. Qc1 {[%emt 0:00:14]} Qg5 {[%emt 0:00:36]} (37... Qe6 $17 {White should prevent ...Qa2.} 38. Qc2 Qb3 39. Qxb3 Rxb3) 38. Qb2 $2 {[%emt 0:00:45][%mdl 8192]} (38. Qc4 $11 {and White stays safe.} Qf6 39. Rb1) 38... Qg4 $19 {[%emt 0:00:47]} 39. Rh4 {[%emt 0:00:25]} Qf3+ {[%emt 0:00:03]} 40. Kg1 {[%emt 0:00:07]} Qxe4 {[%emt 0:00:32]} 41. Rh5 {[%emt 0:05:44]} Rg5 {[%emt 0:24:30]} 42. Rxg5 {[%emt 0:00:43]} hxg5 {[%emt 0:00:02]} 43. g4 {[%emt 0:01:36]} Qf3 {[%emt 0:00:46]} 44. Qxe5 {[%emt 0:01:44]} Qxg4+ {[%emt 0:00:03]} 45. Kh1 {[%emt 0:00:20]} Kg6 {[%emt 0:04:21]} 46. Rc1 {[%emt 0:03:47]} (46. Qh8 $142 Qh3 47. Qxh3 Rxh3 48. Nd4) 46... Qf3+ {[%emt 0:02:27]} (46... Qxf5 47. Rxc6+ f6 48. Qe8+ Kh6 49. Qxf8+ Kh5 50. Qxa3 $17) 47. Kg1 {[%emt 0:00:07]} Qd5 {[%emt 0:00:41]} 48. Qh8 {[%emt 0:03:37] [#]} (48. Qxd5 $142 cxd5 49. Nd4) 48... Rd3 $1 {[%emt 0:01:16]} 49. Qxf8 {[%emt 0:02:53]} Rd1+ {[%emt 0:00:17]} ({Avoid the trap} 49... Kxf5 $2 50. Qc8+ Qe6 51. Qxc6 $19) ({Wrong is} 49... Qxf5 $2 50. Rxc6+ Kh5 51. Rc1 $19) 50. Rxd1 {[%emt 0:00:04]} Qxd1+ {[%emt 0:00:02]} 51. Kg2 {[%emt 0:00:06] And now Ne7+ would win.} Qd5+ {[%emt 0:00:15]} ({Worse is} 51... Kxf5 52. Qxf7+ Kg4 53. Qe6+ Kh5 54. Qh3+ Kg6 55. Qe6+ Kg7 56. Qe7+ Kh6 57. Qe6+ Kh7 58. Qe7+ Kh6 59. Qe6+ Kg7 60. Qe7+ Kh6 $11) 52. f3 {[%emt 0:01:25] Intending Ne7+ and mate.} Kxf5 {[%emt 0:00:03][%mdl 4096] Endgame KQ-KQ} 53. Qc8+ {[%emt 0:00:50]} Ke5 {[%emt 0:00:29]} 54. Qh8+ {[%emt 0:00:43]} f6 {[%emt 0:00:38]} 55. Qb8+ {[%emt 0:00:59]} Kf5 {[%emt 0:00:22] Hoping for ...c5.} 56. Qb1+ {[%emt 0:00:16]} (56. Qb7 $142) 56... Ke6 {[%emt 0:00:19] White must now prevent ...g4.} 57. Qb8 {[%emt 0:02:02]} Qd2+ {[%emt 0:00:25]} 58. Kg1 $2 {[%emt 0:01:07]} (58. Kh3 $19 Ke7 59. Qb1) 58... Qe3+ {[%emt 0:00:48]} 59. Kg2 {[%emt 0:00:05]} Qe2+ {[%emt 0:00:00]} 60. Kg1 {[%emt 0:00:10]} Qxf3 {[%emt 0:00:33]} 61. Qe8+ {[%emt 0:02:31]} Kd5 {[%emt 0:01:27]} 62. Qd7+ {[%emt 0:00:20]} Kc4 {[%emt 0:00:18]} 63. Qe6+ {[%emt 0:01:17]} Qd5 {[%emt 0:00:07]} 64. Qxf6 {[%emt 0:00:44]} Qd4+ {[%emt 0:00:07] Weighted Error Value: White=0.77/Black=0.53} 0-1